Cogmind - Beta 11.1 @@@ ROGUE MODE // 2022.06.09 @ 18:20:12 Player: CrashCricket Result: Self-destructed Performance ------------- Evolutions (1) 500 Regions Visited (2) 400 Robots Destroyed (18) 90 Value Destroyed (327) 327 Prototype IDs (0) 0 Alien Tech Used (0) 0 Bonus (23) 23 TOTAL SCORE: 1340 Bonus ------- High Alert Combat Kills 23 Cogmind --------- Core Integrity 147/400 Matter 2/300 Energy 80/100 System Corruption 0% Temperature Cool (0) Movement Core (150) Ox2 Location -9/Materials Parts ------- > --- POWER (1) -------- (None) > --- PROPULSION (3) --- (None) > --- UTILITY (3) ------ Small Storage Unit > --- WEAPON (2) ------- Light Cannon Mini Grenade Launcher > --- INVENTORY (8) ---- Aluminum Leg Aluminum Leg Small Laser Assault Rifle Assault Rifle Assault Rifle Peak State ------------ > --- POWER ------------ Ion Engine > --- PROPULSION ------- Wheel Compact Wheel > --- UTILITY ---------- Small Storage Unit Light Armor Plating > --- WEAPON ----------- Mini Grenade Launcher Flail > --- INVENTORY -------- Aluminum Leg Aluminum Leg Small Laser Assault Rifle Assault Rifle Light Cannon Mini Grenade Launcher [Rating: 9] Favorites ----------- Power Ion Engine Engine Ion Engine Propulsion Aluminum Leg Leg Aluminum Leg Wheel Compact Wheel Utility Small Storage Unit Storage Small Storage Unit Protection Light Armor Plating Weapon Assault Rifle Energy Gun Small Laser Ballistic Gun Assault Rifle Ballistic Cannon Light Cannon Launcher Mini Grenade Launcher Impact Weapon Flail Build | -11 -10 -9 ------- Run | Scr Mat Mat Slots Evolved 2 | . . 2 Power . | . . . Propulsion 1 | . . 1 Utility 1 | . . 1 Weapon . | . . . Parts Attached 19 | 5 7 7 Power 2 | 1 . 1 Engine 2 | 1 . 1 Core . | . . . Reactor . | . . . Propulsion 4 | 2 2 . Treads . | . . . Leg 2 | 2 . . Wheel 2 | . 2 . Hover . | . . . Flight . | . . . Utility 2 | . 2 . Device . | . . . Storage 1 | . 1 . Processor . | . . . Hackware . | . . . Protection 1 | . 1 . Artifact . | . . . Weapon 11 | 2 3 6 Energy Gun 1 | 1 . . Energy Cannon . | . . . Ballistic Gun 5 | 1 2 2 Ballistic Cannon 2 | . 1 1 Launcher 2 | . . 2 Special Weapon . | . . . Impact Weapon 1 | . . 1 Slashing Weapon . | . . . Piercing Weapon . | . . . Special Melee Weapon . | . . . Unidentified Prototypes . | . . . Parts Lost 7 | . . 7 Power 2 | . . 2 Propulsion 2 | . . 2 Utility 1 | . . 1 Weapon 2 | . . 2 Highest Loss Streak 5 | . . 5 To Critical Strikes . | . . . Average Slot Usage (%) 62 | . 62 63 Engine 9 | . 14 5 Leg 9 | . 20 . Wheel 14 | . 7 20 Storage 6 | . . 11 Protection 3 | . . 4 Ballistic Gun 12 | . 17 7 Launcher 5 | . . 9 Impact Weapon 2 | . . 4 Naked Turns . | . . . Heaviest Build 17 | 7 17 17 Greatest Support 26 | 20 26 26 Greatest Overweight (x) . | . . . Average Overweight (x) . | . . . Largest Inventory Capacity 8 | 5 8 8 Average Capacity 6 | 5 5 8 Most Carried 8 | 5 5 8 Average Carried 5 | 3 4 6 Final Capacity 8 | 5 8 8 Final Carried 6 | 5 4 6 Class Distribution -------------------- 100% | Mutant Dominant Class ---------------- Mutant | -10/Materials Mutant | -9/Materials Resources | -11 -10 -9 ----------- Run | Scr Mat Mat Matter Collected 263 | 200 44 19 Remotely . | . . . Salvage Created 218 | . 44 174 Parts 25 | . 3 22 Haulers Intercepted . | . . . Recyclers Shooed . | . . . Parts Field Recycled . | . . . Retrieved Matter . | . . . Parts Self-Destructed . | . . . Prevented . | . . . Kills | -11 -10 -9 ------- Run | Scr Mat Mat Combat Hostiles Destroyed 15 | . 3 12 Melee 3 | . . 3 Guns 4 | . 3 1 AOE 7 | . . 7 Classes Destroyed 5 | . 1 4 Builder 2 | . . 2 Tunneler 1 | . . 1 Swarmer 11 | . 3 8 Grunt 3 | . . 3 Sentry 1 | . . 1 Best Kill Streak 8 | . 3 8 Combat Bots Only 7 | . 3 7 Max Kills in Single Turn 4 | . 1 4 Gunslinging . | . . . Exploded 3 | . . 3 Melee 1 | . . 1 Uniques/NPCs Destroyed . | . . . Combat | -11 -10 -9 -------- Run | Scr Mat Mat Damage Taken 836 | . 103 733 Core 272 | . 19 253 Absorbed by Shields . | . . . Core Remaining (%) 96 | 100 92 . Volleys Fired 28 | . 10 18 Largest 2 | . 1 2 Hottest 50 | . 20 50 Shots Fired 32 | . 10 22 Gun 17 | . 10 7 Cannon . | . . . Launcher 15 | . . 15 Special . | . . . Kinetic 17 | . 10 7 Thermal . | . . . Explosive 15 | . . 15 Electromagnetic . | . . . Robot Hit Streak 5 | . 2 5 Robot Miss Streak 2 | . 2 2 Penetration Max . | . . . Secondary Targets . | . . . Shots Hit Robots 23 | . 4 19 Core Hits 22 | . 4 18 Critical Kills . | . . . Critical Parts Destroyed 1 | . . 1 Critical Strikes 1 | . . 1 Smash 1 | . . 1 Melee Attacks 8 | . . 8 Impact 8 | . . 8 Slashing . | . . . Piercing . | . . . Sneak Attacks . | . . . Combat Hostiles . | . . . Follow-up Attacks . | . . . Damage Inflicted 1264 | . 46 1218 Guns 99 | . 46 53 Cannons . | . . . Explosions 931 | . . 931 Melee 234 | . . 234 Ramming . | . . . Kinetic 99 | . 46 53 Thermal . | . . . Explosive 931 | . . 931 Electromagnetic . | . . . Impact 234 | . . 234 Slashing . | . . . Piercing . | . . . Highest Corruption . | . . . Average Corruption . | . . . Corruption Purged . | . . . Corruption Blocked . | . . . Overload Shots . | . . . Overflow Damage 181 | . . 181 Projectiles . | . . . Explosions 62 | . . 62 Melee 119 | . . 119 Knockbacks . | . . . Impact . | . . . Kinetic . | . . . Secondary . | . . . Self-Inflicted Damage 289 | . . 289 Shots 9 | . . 9 Rammed . | . . . Targets Rammed . | . . . Kicked . | . . . Crushed . | . . . Highest Temperature 7 | . . 7 Average Temperature 3 | . . 3 Received Heat Transfer 69 | . . 69 Siege Activations . | . . . Robots Corrupted . | . . . Combat Hostiles . | . . . Parts Fried . | . . . Impact Corruptions 5 | . . 5 Robots Melted . | . . . Combat Hostiles . | . . . Parts Melted . | . . . Heat Transferred . | . . . Parts Sabotaged . | . . . Parts Stolen . | . . . Parts Stripped . | . . . Power Chain Reactions 1 | . . 1 Missiles Intercepted . | . . . Alert | -11 -10 -9 ------- Run | Scr Mat Mat Peak Influence 654 | . 99 654 Initial 41 | . . 41 Average 174 | . 60 312 Maximum Alert Level 2 | . . 2 Low Security (%) 70 | 100 100 39 Level 1 4 | . . 9 Level 2 24 | . . 51 Level 3 . | . . . Level 4 . | . . . Level 5 . | . . . High Security . | . . . Max Security . | . . . Squads Dispatched 1 | . . 1 Investigation . | . . . Extermination . | . . . Reinforcement 1 | . . 1 Assault . | . . . Garrison . | . . . Intercept . | . . . Searches Triggered . | . . . Construction Impeded 1 | . . 1 Haulers Reinforced . | . . . Active Scanning Responses . | . . . Cargo Convoy Interrupts . | . . . Stealth | -11 -10 -9 --------- Run | Scr Mat Mat Distress Signals 2 | . . 2 Communications Jammed . | . . . Distress Signals . | . . . Times Spotted 19 | . 4 15 Peak Tracking Total 6 | . 4 6 Tactical Retreats . | . . . Traps | -11 -10 -9 ------- Run | Scr Mat Mat Traps Triggered . | . . . Indirectly . | . . . Trap Hack Attempts . | . . . Triggered . | . . . Disarmed . | . . . Reprogrammed 1 | . 1 . Reused . | . . . Traps Extracted . | . . . Installed . | . . . Triggered . | . . . Machines | -11 -10 -9 ---------- Run | Scr Mat Mat Machines Disabled 4 | . . 4 Max in Single Turn 2 | . . 2 Machines Sabotaged . | . . . Garrisons Compromised . | . . . Overloaded Fab Kills . | . . . Hacking | -11 -10 -9 --------- Run | Scr Mat Mat Machines Accessed 3 | . 2 1 Terminals 1 | . 1 . Fabricators . | . . . Repair Stations . | . . . Recycling Units 1 | . 1 . Scanalyzers 1 | . . 1 Garrison Access . | . . . Total Hacks 7 | . 5 2 Successful 6 | . 4 2 Failed 1 | . 1 . Catastrophic . | . . . Database Lockouts . | . . . Manual . | . . . Terminals 4 | . 4 . Fabricators . | . . . Repair Stations . | . . . Recycling Units 1 | . 1 . Scanalyzers 2 | . . 2 Garrison Access . | . . . Terminal Hacks 3 | . 3 . Locate Traps 1 | . 1 . Reprogram Traps 1 | . 1 . Zone Layout 1 | . 1 . Fabricator Hacks . | . . . Repair Station Hacks . | . . . Recycling Unit Hacks 1 | . 1 . Retrieve Components 1 | . 1 . Scanalyzer 2 | . . 2 Insert Component 1 | . . 1 Analyze 1 | . . 1 Garrison Access Hacks . | . . . Unauthorized Hacks . | . . . Terminals . | . . . Fabricators . | . . . Repair Stations . | . . . Recycling Units . | . . . Scanalyzers . | . . . Garrison Access . | . . . Data Cores Recovered . | . . . Used . | . . . Hacking Detections 2 | . 1 1 Full Trace Events . | . . . Feedback Events . | . . . Feedback Blocked . | . . . Robot Schematics Acquired . | . . . Robots Built . | . . . Authchips . | . . . Time . | . . . Total Robot Build Rating . | . . . Part Schematics Acquired 1 | . . 1 Parts Built . | . . . Authchips . | . . . Time . | . . . Total Part Build Rating . | . . . Parts Repaired . | . . . Time . | . . . Parts Recycled . | . . . Recycled Matter . | . . . Retrieved Matter . | . . . Retrieved Components 1 | . 1 . Parts Scanalyzed 1 | . . 1 Part Schematics Acquired 1 | . . 1 Parts Damaged . | . . . Bothacking | -11 -10 -9 ------------ Run | Scr Mat Mat Used RIF Installer . | . . . Robots Hacked . | . . . Non-combat . | . . . Combat . | . . . Robot Hacks Applied . | . . . Relay Couplers Released . | . . . Fabnet Peak Effective % . | . . . Robots Rewired . | . . . Allies Hacked . | . . . Hacks Repelled . | . . . Allies | -11 -10 -9 -------- Run | Scr Mat Mat Total Allies . | . . . Largest Group . | . . . Highest-Rated Group . | . . . Highest-Rated Ally . | . . . Total Orders . | . . . Ally Attacks . | . . . Total Damage . | . . . Kills . | . . . Allies Corrupted . | . . . Allies Melted . | . . . Intel | -11 -10 -9 ------- Run | Scr Mat Mat Robot Analysis Total . | . . . Derelict Logs Recovered . | . . . Drone Launches . | . . . Drone Recoveries . | . . . Exploration | -11 -10 -9 ------------- Run | Scr Mat Mat Turns Passed 389 | 58 141 190 Spaces Moved 270 | 42 101 127 Core 9 | 9 . . Treads . | . . . Legs 101 | 33 68 . Wheels 160 | . 33 127 Hover . | . . . Flight . | . . . Fastest Speed 50 | 50 90 90 Average Speed 99 | 105 110 90 Slowest Speed 120 | 120 120 90 Overloaded Moves . | . . . Propulsion Burnouts . | . . . Robots Hopped . | . . . Cave-ins Triggered . | . . . Exploration Rate (%) 17 | 4 24 23 Regions Visited 2 Branch Regions . Pre-discovered Areas . | . . . Known Exits Taken . | . . . Unknown Exits Taken 2 | 1 1 . Scrap Searched . | . . . Spaces Dug 9 | . . 9 Terrain Destroyed 136 | . . 136 Melee . | . . . Projectile . | . . . AOE 136 | . . 136 Terrain Rammed . | . . . Walls Destroyed . | . . . Machines Disabled . | . . . Actions | -11 -10 -9 --------- Run | Scr Mat Mat Total 340 | 56 117 167 Wait . | . . . Move 268 | 41 100 127 Hop . | . . . Pick Up 14 | 9 . 5 Fast Attach 3 | . 2 1 Attach 8 | 5 1 2 Detach 1 | 1 . . Swap 8 | . 4 4 Drop 2 | . . 2 Fire 28 | . 10 18 Melee 8 | . . 8 Ram . | . . . Kick . | . . . Crush . | . . . Escape Stasis . | . . . Rewire . | . . . Trap . | . . . Miscellaneous . | . . . Route ------- -11/Scrapyard -10/Materials -9/Materials (discovered 1 exit: [*Min]) History --------- Turn | Location | Event 5 | -11/Scrapyard | Discovered new exit (range 16) 59 | -11/Scrapyard | Entered Materials 153 | -10/Materials | Discovered new exit (range 16) 200 | -10/Materials | Entered another Materials area 200 | -9/Materials | Evolved 2 slots: Propulsion x1, Utility x1 324 | -9/Materials | Destroyed 7 combat bots 350 | -9/Materials | Build established: Mutant 362 | -9/Materials | Discovered new exit (range 12) 381 | -9/Materials | Core integrity fell below 50% 390 | -9/Materials | Self-destructed Last Messages --------------- U-05 Engineer builds a Wall. K-01 Serf collects debris. W-16 Scout sends out distress signal. R-06 Scavenger collects Aluminum Leg. U-05 Engineer lays Concrete. Y-45 Defender destroyed. EXIT=FOUND S-10 Pest destroyed. Acquired 1 matter. Acquired Lgt. Ion Engine. Assault Rifle destroyed. Destroyed Assault Rifle. Neutrino Reactor explodes. Chain reaction triggered in Lgt. Ion Engine. Wheel destroyed. Destroyed Wheel. Com. Wheel destroyed. Mni. Grenade Launcher destroyed. W-16 Scout sends out distress signal. The unstable cave ceiling collapses. Map ----- +----------------------------------------------------+ | ?????????????????????????????????????????????????? | | ?????????????????????????????????????????????????? | | ?????????????????????????????????????????????????? | | ?????????????????????????????????????????????????? | | ?????????????????????????????????????????????????? | | ?????????????????????????????????????????????????? | | ?????????????????????????????????????????????????? | | ?????????????????????????????????????????????????? | | ?????????????????????????????????????????????????? | | ?????????????????????????????????????????????????? | | ?????????????????????????#???????????????????????? | | ????????????????????????? ???????????????????????? | | ????????????????????????? ??? #?????????????????? | | ????????????????????????? """ =#?#???????????????? | | ????????????????????????# """ # ????????????????? | | ??????????????#???? #???# # ????????????????? | | ?????????????# ?? #??# ;?????????????????? | | ?????????????# ### w#?????????????????? | | ????????????## """ # #?????????????????? | | ????????????? Y "T" # !#?????????????????? | | ??????????????? # #?????????????????? | | ????????????????? [!=# !#?????????????????? | | ?????????????????# [!= #??? #????????????? | | ?????????######### ?[! !## ##???????????? | | ???????+## ##+### [ # #???????????? | | ???? a @ T #???????????? | | ???? < "" +???????????? | | ???? a "" [ %! #???????????? | | ???????+##" "## "Y #[ # #???????????? | | ?????????#" !"! ??# "" ##??+###???????????? | | ?????????#"""""???# # ???????????????? | | ????????????#?????# # """ "???????????? | | ??????????????????# ### """ ?????????????? | | ??????????????????### ##?? """ ??????????????? | | ????????????????????# #???? ???????????????? | | ????????????????????# #???? ???????????????? | | ????????????????????# u#????? ???????????????? | | ????????????????????# #????? ??????????????? | | ????????????????????# ##################?????? | | ????????????????????# ^ #?????? | | ????????????????????# ^ #?????? | | ????????????????????# #?????? | | ????????????????????# ! #?????? | | ????????????????????# ###"# #% ## #?????? | | ??????????????????#####+###""" ## #?????? | | ??????????????????# "! #?????? | | ??????????????????# " # #?????? | | ??????????????????# " # ####??? | | ??????????????????# / " + #### | | ??????????????????# = " # | +----------------------------------------------------+ Best States ------------- Heat Dissipation 28 Energy Generation 10 Energy Capacity 250 Matter Stores 264 Matter Capacity 300 Sight Range 16 Terrain Scan Density 10 Armor Coverage 150 Evasion (%) 55 Item Schematics ----------------- Lgt. Cannon | -9/Materials | Scanalyzed Robot Schematics ------------------ None Fabricated ------------ Nothing Alien Tech Used ----------------- None Achievements -------------- None Challenges ------------ None Game ------ Seed FusionCloakInitializer Manual? 0 Play Time 00:09:42 Cumulative 15.6 hours Start 2022.06.09 @ 18:10:14 End 2022.06.09 @ 18:20:12 Sessions 1 Manual Loads 0 Difficulty Rogue Special Mode None Game No. 22 Rogue 13 Adventurer 2 Explorer 7 Win Type - Total 0 Types 0/0/0/0/0/0/0/0/0 Lore% 11 Gallery% 21 Achievement% 19 Wizard Run 0 Options --------- ASCII 0 Keyboard 0 Movement Mouse Keybinds 0 Fullscreen 1 Font 18/SmallcapsGlow Map View 76x50 Tactical HUD 0 Map Filters NONE Filters NONE Steam 1 RUN: 08dedd6c-8f6c-4b96-89d1-1006068e2799